Cogmind - Beta 13 @@@ ROGUE MODE // 2024.02.27 @ 04:53:21 Player: Savant Result: Destroyed by G-50 Soldier with Heavy Laser Performance ------------- Evolutions (3) 1500 Regions Visited (11) 2200 Robots Destroyed (191) 955 Value Destroyed (7571) 7571 Prototype IDs (32) 640 Alien Tech Used (0) 0 Bonus (1625) 1625 TOTAL SCORE: 14491 Bonus ------- High Alert Combat Kills 735 Follower Combat Kills 110 Entered Garrisons 200 Met Data Miner 300 Acquired ECA 300 Friendly Fire -20 Cogmind --------- Core Integrity 0/700 Matter 154/300 Energy 100/100 System Corruption 14% Temperature Warning (376) Movement Core (800) Ox15 Location -6/Proximity Caves Parts ------- > --- POWER (2) -------- (None) > --- PROPULSION (4) --- (None) > --- UTILITY (5) ------ High-capacity Storage Unit Armor Integrity Analyzer Armor Integrity Analyzer > --- WEAPON (2) ------- Subdweller Shrapnel Launcher > --- INVENTORY (20) --- Flightbrick Huge Storage Unit Encrypted Comm Array Hardened Heavy Armor Plating Hardened Heavy Armor Plating Medium Reactive Plating Component Analysis Suite Magnetic Acceleration Cannon Rocket Array Mini Smartbomb Launcher Power Maul Makeshift Sword Peak State ------------ > --- POWER ------------ Nuclear Core > --- PROPULSION ------- Titanium Leg Myomer Leg Cargo Legs > --- UTILITY ---------- High-capacity Storage Unit Subdweller Optics Improved Targeting Computer Hardened Medium Armor Plating Makeshift Light Armor Plating Makeshift Hacking Suite > --- WEAPON ----------- Heavy EM Shotgun Bore Cannon > --- INVENTORY -------- Makeshift Power Source Titanium Leg Titanium Leg Flightbrick High-capacity Matter Pod Heavy Armor Plating Hardened Medium Armor Plating Insulated Plating Hacking Suite Subdweller Beam Cannon Subdweller Shrapnel Launcher Heavy Missile Launcher Improved Datajack Great Maul Makeshift Sword [Rating: 62] Favorites ----------- Power Nuclear Core Engine Light Angular Momentum Engine Power Core Nuclear Core Propulsion Armored Wheel Treads Armored Treads Leg Carbon-fiber Leg Wheel Armored Wheel Flight Unit Xenon Bombardment Thruster Utility Huge Storage Unit Device Improved Heat Sink Storage Huge Storage Unit Processor Improved Targeting Computer Hackware Makeshift Hacking Suite Protection Scrap Shield Weapon Subdweller Beam Cannon Energy Gun Tesla Rifle Energy Cannon Subdweller Beam Cannon Ballistic Gun Subdweller Machine Gun Ballistic Cannon Mass Driver Launcher Mini Smartbomb Launcher Special Weapon Enhanced Flamer Impact Weapon Great Maul Slashing Weapon Makeshift Sword Piercing Weapon Spear Special Melee Weapon Datajack Build | -11 -10 -10 -8 -8 -7 -7 -7 -7 -7 -7 -6 ------- Run | Yrd Mat Sub Mat Gar Fac Was Fac Low Low Dat Pro Slots Evolved 6 | . . . 4 . 2 . . . . . . Power 1 | . . . . . 1 . . . . . . Propulsion 2 | . . . 2 . . . . . . . . Utility 3 | . . . 2 . 1 . . . . . . Weapon . | . . . . . . . . . . . . Parts Attached 303 | 6 24 36 55 20 29 2 73 33 18 2 5 Power 25 | 1 2 7 3 1 4 . 4 2 . . 1 Engine 15 | 1 . 7 1 1 3 . 1 . . . 1 Core 10 | . 2 . 2 . 1 . 3 2 . . . Reactor . | . . . . . . . . . . . . Propulsion 52 | 2 11 7 9 1 7 . 8 6 1 . . Treads 16 | 1 5 2 2 1 2 . 2 1 . . . Leg 13 | . . 1 5 . 2 . 2 3 . . . Wheel 22 | 1 6 4 2 . 3 . 4 2 . . . Hover . | . . . . . . . . . . . . Flight 1 | . . . . . . . . . 1 . . Utility 81 | 1 6 8 12 3 8 . 24 14 5 . . Device 41 | . 1 2 2 1 4 . 19 11 1 . . Storage 7 | 1 3 1 1 . . . . . 1 . . Processor 4 | . 1 . 1 . . . . . 2 . . Hackware 3 | . . 1 1 . . . 1 . . . . Protection 26 | . 1 4 7 2 4 . 4 3 1 . . Artifact . | . . . . . . . . . . . . Weapon 145 | 2 5 14 31 15 10 2 37 11 12 2 4 Energy Gun 9 | . . 1 3 1 1 . 2 . . . 1 Energy Cannon 33 | . 2 4 5 1 1 1 12 4 2 . 1 Ballistic Gun 32 | 2 . 4 1 5 4 . 10 1 3 1 1 Ballistic Cannon 21 | . 2 2 11 3 1 . 1 1 . . . Launcher 17 | . . . 3 2 . 1 5 3 2 . 1 Special Weapon 7 | . 1 2 . . . . . 1 2 1 . Impact Weapon 15 | . . . 4 3 3 . 5 . . . . Slashing Weapon 9 | . . . 4 . . . 1 1 3 . . Piercing Weapon 1 | . . . . . . . 1 . . . . Special Melee Weapon 1 | . . 1 . . . . . . . . . Unidentified Prototypes 8 | . . . 4 . 1 1 2 . . . . Parts Lost 56 | . . 2 5 2 11 . 11 14 4 . 7 Power 10 | . . 1 . . 1 . 3 4 . . 1 Propulsion 19 | . . . 1 . 6 . 5 4 3 . . Utility 16 | . . 1 2 1 3 . 2 5 . . 2 Weapon 11 | . . . 2 1 1 . 1 1 1 . 4 Highest Loss Streak 7 | . . 2 1 1 5 . 3 4 2 . 7 To Critical Strikes 2 | . . . . . 1 . . 1 . . . Average Slot Usage (%) 81 | . 97 78 93 100 96 92 87 75 48 47 67 Engine 5 | . 2 11 . 5 13 7 6 . . . 6 Core 3 | . 11 . 6 3 . 7 4 7 . . . Treads 8 | . 15 9 3 18 13 7 5 6 7 7 6 Leg 7 | . . 3 19 . 2 7 8 14 2 . . Wheel 8 | . 12 9 3 18 12 15 14 4 . . . Device 5 | . 10 . 6 . 9 7 6 10 8 15 14 Storage 6 | . 14 2 7 9 7 7 7 7 7 7 7 Processor 3 | . 1 . 7 9 7 7 7 1 2 15 15 Hackware 2 | . . 1 5 9 2 . . . . . . Protection 8 | . . 12 13 8 7 7 6 6 2 . . Energy Cannon 6 | . 12 12 2 . 2 7 8 4 . . . Ballistic Gun 5 | . 6 9 3 6 3 . 4 1 6 . 6 Ballistic Cannon 4 | . 9 3 5 8 6 . . 5 . . . Naked Turns . | . . . . . . . . . . . . Heaviest Build 129 | 12 54 75 109 111 129 120 129 129 115 47 57 Greatest Support 100 | 10 40 55 100 24 24 20 28 30 30 30 30 Greatest Overweight (x) 12 | 1 5 5 9 4 12 5 10 10 3 1 1 Average Overweight (x) 3 | . 3 1 1 4 5 5 4 6 1 1 1 Largest Inventory Capacity 25 | 8 20 20 25 25 25 25 25 25 25 20 20 Average Capacity 19 | 7 15 9 21 25 25 25 25 25 22 20 20 Most Carried 25 | 6 20 20 25 25 25 25 25 25 22 20 20 Average Carried 18 | 3 15 8 20 24 23 25 24 22 20 19 19 Final Capacity 25 | 8 20 20 25 25 25 25 25 25 20 20 20 Final Carried 25 | 6 20 20 25 25 25 25 25 19 20 20 17 Class Distribution -------------------- 54% | Mutant 24% | Subdweller-Mutant 17% | Scavenger-Mutant 4% | Derelict-Mutant Dominant Class ---------------- Mutant | -10/Materials Subdweller-Mutant | -10/Subcaves Mutant | -8/Materials Mutant | -8/Garrison Scavenger-Mutant | -7/Factory Scavenger-Mutant | -7/Waste Mutant | -7/Factory Mutant | -7/Lower Caves Mutant | -7/Lower Caves Mutant | -7/Data Miner Derelict-Mutant | -6/Proximity Caves Resources | -11 -10 -10 -8 -8 -7 -7 -7 -7 -7 -7 -6 ----------- Run | Yrd Mat Sub Mat Gar Fac Was Fac Low Low Dat Pro Matter Collected 6597 | 231 499 566 1043 740 627 . 1280 1052 490 . 69 Remotely . | . . . . . . . . . . . . Salvage Created 6750 | . 469 486 1399 721 675 . 1789 696 395 . 120 Parts 338 | . 26 24 63 48 31 . 93 31 15 . 7 Haulers Intercepted 11 | . 2 . 5 . 1 . 3 . . . . Recyclers Shooed 3 | . . . 3 . . . . . . . . Parts Field Recycled . | . . . . . . . . . . . . Retrieved Matter . | . . . . . . . . . . . . Parts Self-Destructed 56 | . . 9 . . . . . 23 12 . 12 Prevented . | . . . . . . . . . . . . Kills | -11 -10 -10 -8 -8 -7 -7 -7 -7 -7 -7 -6 ------- Run | Yrd Mat Sub Mat Gar Fac Was Fac Low Low Dat Pro Combat Hostiles Destroyed 159 | . 9 14 24 25 16 . 39 21 9 . 2 Melee 6 | . . . 6 . . . . . . . . Guns 35 | . 3 2 4 8 3 . 11 1 2 . 1 Cannons 70 | . 6 11 6 10 12 . 12 10 2 . 1 AOE 42 | . . . 5 7 . . 15 10 5 . . Classes Destroyed 16 | . 4 1 6 1 2 . . 1 1 . . Worker 5 | . . . 1 . 2 . 2 . . . . Builder 5 | . . . 1 . 2 . 2 . . . . Hauler 11 | . 2 . 5 . 1 . 3 . . . . Recycler 4 | . . . 3 . . . 1 . . . . Operator 4 | . 1 . 2 . . . 1 . . . . Watcher 3 | . 1 . 2 . . . . . . . . Swarmer 39 | . . . 6 11 1 . 10 7 4 . . Grunt 67 | . 9 1 10 7 7 . 20 10 3 . . Brawler 4 | . . . . 1 1 . 1 1 . . . Duelist 5 | . . . 1 1 . . 1 . 1 . 1 Sentry 18 | . . . 7 5 4 . 1 . . . 1 Hunter 4 | . . . . . 1 . 3 . . . . Programmer 8 | . . . . . 2 . 3 2 1 . . Behemoth 1 | . . . . . . . . 1 . . . Subdweller 13 | . . 13 . . . . . . . . . Samaritan 2 | . . . . . . . . . 2 . . Best Kill Streak 8 | . 2 2 4 7 5 . 8 7 4 . 1 Combat Bots Only 7 | . 2 2 4 7 4 . 7 7 4 . 1 Max Kills in Single Turn 4 | . 1 1 2 4 2 . 4 3 2 . 1 Gunslinging . | . . . . . . . . . . . . Exploded 4 | . . . 2 4 . . 4 3 2 . . Melee 1 | . . . 1 . . . . . . . . Uniques/NPCs Destroyed . | . . . . . . . . . . . . Combat | -11 -10 -10 -8 -8 -7 -7 -7 -7 -7 -7 -6 -------- Run | Yrd Mat Sub Mat Gar Fac Was Fac Low Low Dat Pro Hostile Shots Fired 1128 | . 37 60 143 154 277 . 198 172 40 . 47 Missed 288 | . 5 15 28 39 70 . 59 51 11 . 10 Damage Taken 11775 | . 397 1358 1729 970 1719 . 2298 2081 567 . 656 Core 1117 | . 75 91 184 52 127 . 215 156 43 . 174 Absorbed by Shields 469 | . . . . . 469 . . . . . . Ignored by Resistances 36 | . . . 36 . . . . . . . . Regen/Repaired (Parts) 177 | . . . 177 . . . . . . . . Core Remaining (%) 63 | 100 . 33 . 57 . . . . . . . Volleys Fired 485 | . 52 81 48 55 55 . 93 75 17 . 9 Largest 2 | . 2 2 2 2 2 . 2 2 2 . 2 Hottest 165 | . 100 115 125 125 125 . 155 147 118 . 165 Shots Fired 857 | . 100 130 84 99 109 . 165 124 28 . 18 Gun 329 | . 54 35 38 40 46 . 67 21 19 . 9 Cannon 493 | . 42 91 43 57 63 . 92 98 3 . 4 Launcher 21 | . . . 3 2 . . 6 5 4 . 1 Special 14 | . 4 4 . . . . . . 2 . 4 Kinetic 514 | . 64 49 62 87 89 . 60 78 19 . 6 Thermal 299 | . 36 81 15 9 8 . 92 41 5 . 12 Explosive 18 | . . . 1 2 . . 6 5 4 . . Electromagnetic 26 | . . . 6 1 12 . 7 . . . . Robot Hit Streak 19 | . 11 11 9 12 19 . 15 15 14 . 6 Robot Miss Streak 5 | . 4 3 3 4 3 . 3 5 2 . 5 Penetration Max 1 | . . . 1 . 1 . . . . . . Secondary Targets 2 | . . . . . . . 1 . 1 . . Max Gunslinging Chain 1 | . . . . . . . 1 . 1 . . Shots Hit Robots 581 | . 61 75 84 60 84 . 101 79 23 . 14 Core Hits 287 | . 22 21 39 34 31 . 76 34 18 . 12 Critical Kills 14 | . . 1 7 5 . . 1 . . . . Critical Parts Destroyed 17 | . . 1 5 5 3 . 2 . 1 . . Critical Strikes 44 | . . 3 15 13 6 . 3 2 1 . 1 Burn 1 | . . . . . . . . . . . 1 Meltdown 3 | . . 1 1 . . . 1 . . . . Destroy 24 | . . 1 9 11 2 . . . 1 . . Blast 8 | . . 1 . 2 3 . . 2 . . . Smash 7 | . . . 4 . 1 . 2 . . . . Sever 1 | . . . 1 . . . . . . . . Melee Attacks 79 | . . 1 45 10 4 . 6 3 10 . . Impact 50 | . . . 30 10 4 . 6 . . . . Slashing 28 | . . . 15 . . . . 3 10 . . Piercing . | . . . . . . . . . . . . Sneak Attacks 18 | . . 1 10 . 1 . 4 . 2 . . Combat Hostiles . | . . . . . . . . . . . . Follow-up Attacks 9 | . . . 9 . . . . . . . . Damage Inflicted 19505 | . 766 1586 3376 1698 2797 . 4241 3496 1109 . 436 Guns 4386 | . 272 499 600 640 833 . 816 366 214 . 146 Cannons 8081 | . 494 1087 551 742 1815 . 1389 1814 86 . 103 Explosions 4319 | . . . 516 316 . . 1675 1124 535 . 153 Melee 2644 | . . . 1689 . 149 . 361 192 253 . . Ramming 20 | . . . 20 . . . . . . . . Kinetic 8036 | . 363 639 1101 1238 2275 . 658 1329 214 . 219 Thermal 4860 | . 403 947 275 144 163 . 1479 1125 107 . 217 Explosive 3457 | . . . 171 316 . . 1585 850 535 . . Electromagnetic 488 | . . . 120 . 210 . 158 . . . . Impact 1674 | . . . 1164 . 149 . 361 . . . . Slashing 970 | . . . 525 . . . . 192 253 . . Piercing . | . . . . . . . . . . . . Highest Corruption 14 | . . . . . 7 7 7 14 14 14 14 Average Corruption 10 | . . . . . 6 7 6 12 13 14 14 Corruption Purged 10 | . . . . . . . 8 2 . . . Corruption Blocked . | . . . . . . . . . . . . Effects 285 | . . . . . 21 7 61 105 65 7 19 Message Errors 57 | . . . . . 3 . 11 27 13 . 3 Matter Fused 76 | . . . . . 7 2 15 26 18 4 4 Heat Flow Errors 40 | . . . . . 3 3 7 13 10 1 3 Energy Discharges 41 | . . . . . 4 . 8 17 10 1 1 Parts Rejected 6 | . . . . . 1 1 2 1 . . 1 Parts Fused 4 | . . . . . . . 1 2 1 . . Data Loss (minor) 25 | . . . . . 1 . 6 9 3 1 5 Data Loss (major) 16 | . . . . . 1 1 4 3 6 . 1 Misfires 11 | . . . . . . . 5 3 2 . 1 Alerts 7 | . . . . . . . 2 3 2 . . Weapon Failures 2 | . . . . . 1 . . 1 . . . Overload Shots . | . . . . . . . . . . . . Overflow Damage 1223 | . . . 506 . 50 . 386 201 59 . 21 Projectiles 114 | . . . 1 . 17 . . 65 31 . . Explosions 211 | . . . . . . . 139 51 . . 21 Melee 898 | . . . 505 . 33 . 247 85 28 . . Knockbacks 24 | . . 2 4 3 7 . . 8 . . . Impact 3 | . . . 3 . . . . . . . . Kinetic 20 | . . 2 . 3 7 . . 8 . . . Secondary 1 | . . . 1 . . . . . . . . Self-Inflicted Damage 346 | . . . 34 . . . 160 80 56 . 16 Shots 9 | . . . 1 . . . 5 1 1 . 1 Rammed . | . . . . . . . . . . . . Targets Rammed 2 | . . . 2 . . . . . . . . Kicked 2 | . . . 2 . . . . . . . . Crushed . | . . . . . . . . . . . . Highest Temperature 444 | . 260 17 444 318 294 266 388 354 241 97 388 Average Temperature 103 | . 61 5 131 88 124 120 96 128 74 49 156 Received Heat Transfer 3483 | . 243 264 711 432 516 . 621 381 117 . 198 Effects 21 | . . . 9 . 1 . 6 2 . . 3 Shutdowns 3 | . . . 1 . . . . 2 . . . Energy Bleed 2 | . . . . . 1 . 1 . . . . Interference 9 | . . . 6 . . . 3 . . . . Matter Decay 1 | . . . . . . . . . . . 1 Short Circuit 2 | . . . . . . . 1 . . . 1 Damage (minor) 4 | . . . 2 . . . 1 . . . 1 Siege Activations . | . . . . . . . . . . . . Robots Corrupted 3 | . . . 1 . 1 . 1 . . . . Combat Hostiles 1 | . . . . . 1 . . . . . . Parts Fried 18 | . . . 10 . 2 . 6 . . . . Impact Corruptions 20 | . . . 15 . 2 . 3 . . . . Robots Melted 3 | . . 1 1 . . . 1 . . . . Combat Hostiles 3 | . . 1 1 . . . 1 . . . . Parts Melted 14 | . 1 5 . 3 . . 4 . 1 . . Heat Transferred 7268 | . 851 1369 346 259 296 . 2061 1276 234 . 576 Parts Sabotaged . | . . . . . . . . . . . . Parts Stolen 2 | . . . . . . . . 2 . . . Parts Stripped . | . . . . . . . . . . . . Power Chain Reactions 1 | . . . 1 . . . . . . . . Alert | -11 -10 -10 -8 -8 -7 -7 -7 -7 -7 -7 -6 ------- Run | Yrd Mat Sub Mat Gar Fac Was Fac Low Low Dat Pro Peak Influence 1158 | . 266 . 282 1158 805 258 790 . . . . Initial 607 | . . . . 148 607 243 180 . . . . Average 381 | . 89 . 136 712 685 248 446 . . . . Maximum Alert Level 4 | . 1 . 1 4 3 1 3 . . . . Low Security (%) 36 | 100 87 . 64 11 . . 13 . . . . Level 1 26 | . 12 . 35 16 . 100 38 . . . . Level 2 17 | . . . . 7 65 . 30 . . . . Level 3 16 | . . . . 44 34 . 17 . . . . Level 4 3 | . . . . 19 . . . . . . . Level 5 . | . . . . . . . . . . . . High Security . | . . . . . . . . . . . . Max Security . | . . . . . . . . . . . . Squads Dispatched 30 | . 1 . 4 . 10 . 15 . . . . Investigation 2 | . . . . . . . 2 . . . . Extermination 5 | . . . . . 2 . 3 . . . . Reinforcement 9 | . 1 . 1 . 1 . 6 . . . . Assault 2 | . . . . . 1 . 1 . . . . Garrison 12 | . . . 3 . 6 . 3 . . . . Intercept . | . . . . . . . . . . . . Searches Triggered . | . . . . . . . . . . . . Construction Impeded 2 | . . . . . . . 2 . . . . Haulers Reinforced . | . . . . . . . . . . . . Active Scanning Responses . | . . . . . . . . . . . . Cargo Convoy Interrupts 1 | . . . . . 1 . . . . . . Stealth | -11 -10 -10 -8 -8 -7 -7 -7 -7 -7 -7 -6 --------- Run | Yrd Mat Sub Mat Gar Fac Was Fac Low Low Dat Pro Distress Signals 1 | . 1 . . . . . . . . . . Communications Jammed . | . . . . . . . . . . . . Distress Signals . | . . . . . . . . . . . . Times Spotted 248 | . 20 29 40 25 27 5 63 23 9 . 7 Peak Tracking Total 7 | . 5 6 5 6 5 5 7 4 4 . 6 Tactical Retreats 8 | . 1 . . 2 1 . 2 2 . . . Traps | -11 -10 -10 -8 -8 -7 -7 -7 -7 -7 -7 -6 ------- Run | Yrd Mat Sub Mat Gar Fac Was Fac Low Low Dat Pro Traps Triggered 11 | . . 5 . 4 1 . . . 1 . . Indirectly . | . . . . . . . . . . . . Trap Hack Attempts . | . . . . . . . . . . . . Triggered . | . . . . . . . . . . . . Disarmed 5 | . . . 5 . . . . . . . . Reprogrammed 3 | . . . 3 . . . . . . . . Reused . | . . . . . . . . . . . . Traps Extracted . | . . . . . . . . . . . . Installed 1 | . . 1 . . . . . . . . . Triggered 2 | . . . . . 2 . . . . . . Machines | -11 -10 -10 -8 -8 -7 -7 -7 -7 -7 -7 -6 ---------- Run | Yrd Mat Sub Mat Gar Fac Was Fac Low Low Dat Pro Machines Disabled 25 | . . 1 4 8 1 . 7 4 . . . Max in Single Turn 3 | . . 1 1 1 1 . 3 2 . . . Garrison Access 1 | . . . . . . . 1 . . . . Garrison Relay 4 | . . . . 4 . . . . . . . Machines Repaired . | . . . . . . . . . . . . Machines Dismantled . | . . . . . . . . . . . . Machines Sabotaged . | . . . . . . . . . . . . Overloaded Fab Kills . | . . . . . . . . . . . . Hacking | -11 -10 -10 -8 -8 -7 -7 -7 -7 -7 -7 -6 --------- Run | Yrd Mat Sub Mat Gar Fac Was Fac Low Low Dat Pro Machines Accessed 54 | . 7 2 16 3 3 . 19 . . 4 . Terminals 29 | . 7 . 11 3 1 . 7 . . . . Fabricators 5 | . . . . . . . 5 . . . . Repair Stations 3 | . . . 1 . . . 2 . . . . Recycling Units 4 | . . . 2 . . . 2 . . . . Scanalyzers 2 | . . . 1 . . . 1 . . . . Garrison Access 5 | . . . 1 . 2 . 2 . . . . Total Hacks 170 | . 17 10 59 7 5 . 44 . . 28 . Successful 103 | . 4 10 42 2 2 . 15 . . 28 . Failed 66 | . 13 . 16 5 3 . 29 . . . . Catastrophic 13 | . . . 2 . 1 . 10 . . . . Database Lockouts 1 | . . . 1 . . . . . . . . Manual 66 | . 6 . 31 1 2 . 26 . . . . Terminals 85 | . 17 . 41 7 2 . 18 . . . . Fabricators 8 | . . . . . . . 8 . . . . Repair Stations 8 | . . . 5 . . . 3 . . . . Recycling Units 15 | . . . 10 . . . 5 . . . . Scanalyzers 9 | . . . 2 . . . 7 . . . . Garrison Access 7 | . . . 1 . 3 . 3 . . . . Terminal Hacks 61 | . 2 10 17 2 . . 2 . . 28 . Record 20 | . . 9 . . . . . . . 11 . Part Schematic 10 | . . . 1 . . . . . . 9 . Robot Schematic 5 | . . . . . . . . . . 5 . Robot Analysis 1 | . . . 1 . . . . . . . . Prototype ID Bank 4 | . . . 1 . . . . . . 3 . Branch Access Points 2 | . . . 1 . . . 1 . . . . Emergency Access Points 1 | . . . . 1 . . . . . . . Terminal Index 1 | . . . 1 . . . . . . . . Garrison Index 1 | . . . 1 . . . . . . . . Unreport Threat 2 | . . . 2 . . . . . . . . Locate Traps 5 | . 2 . 2 . . . 1 . . . . Disarm Traps 1 | . . . 1 . . . . . . . . Reprogram Traps 1 | . . . 1 . . . . . . . . Hauler Manifests 2 | . . . 2 . . . . . . . . Zone Layout 3 | . . . 3 . . . . . . . . Garrison Registry 1 | . . . . 1 . . . . . . . Derelict Proto ID Bank 1 | . . 1 . . . . . . . . . Fabricator Hacks 1 | . . . . . . . 1 . . . . Network Status 1 | . . . . . . . 1 . . . . Repair Station Hacks 4 | . . . 4 . . . . . . . . Scan Component 2 | . . . 2 . . . . . . . . Repair 2 | . . . 2 . . . . . . . . Recycling Unit Hacks 3 | . . . 3 . . . . . . . . Report Inventory 2 | . . . 2 . . . . . . . . Retrieve Components 1 | . . . 1 . . . . . . . . Scanalyzer 8 | . . . 2 . . . 6 . . . . Insert Component 5 | . . . 2 . . . 3 . . . . Analyze 3 | . . . . . . . 3 . . . . Garrison Access Hacks 3 | . . . 1 . 1 . 1 . . . . Unlock Access 2 | . . . 1 . 1 . . . . . . Seal Access 1 | . . . . . . . 1 . . . . Unauthorized Hacks 23 | . 2 . 15 . 1 . 5 . . . . Terminals 11 | . 2 . 8 . 1 . . . . . . Track 1 | . . . 1 . . . . . . . . Assimilate 5 | . 1 . 4 . . . . . . . . Botnet 3 | . . . 2 . 1 . . . . . . Operators 2 | . 1 . 1 . . . . . . . . Fabricators 4 | . . . . . . . 4 . . . . Liberate 3 | . . . . . . . 3 . . . . Haulers 1 | . . . . . . . 1 . . . . Repair Stations 1 | . . . 1 . . . . . . . . Mechanics 1 | . . . 1 . . . . . . . . Recycling Units 7 | . . . 6 . . . 1 . . . . Monitor 1 | . . . 1 . . . . . . . . Reject 3 | . . . 2 . . . 1 . . . . Recyclers 1 | . . . 1 . . . . . . . . Mask 2 | . . . 2 . . . . . . . . Scanalyzers . | . . . . . . . . . . . . Garrison Access . | . . . . . . . . . . . . Data Cores Recovered . | . . . . . . . . . . . . Used . | . . . . . . . . . . . . Hacking Detections 42 | . 7 . 13 3 3 . 16 . . . . Full Trace Events 2 | . . . . . . . 2 . . . . Feedback Events . | . . . . . . . . . . . . Feedback Blocked . | . . . . . . . . . . . . Robot Schematics Acquired 5 | . . . . . . . . . . 5 . Robots Built . | . . . . . . . . . . . . Authchips . | . . . . . . . . . . . . Time . | . . . . . . . . . . . . Total Robot Build Rating . | . . . . . . . . . . . . Part Schematics Acquired 13 | . . . 1 . . . 3 . . 9 . Parts Built . | . . . . . . . . . . . . Authchips . | . . . . . . . . . . . . Time . | . . . . . . . . . . . . Total Part Build Rating . | . . . . . . . . . . . . Parts Repaired 2 | . . . 2 . . . . . . . . Time 112 | . . . 112 . . . . . . . . Parts Recycled . | . . . . . . . . . . . . Recycled Matter . | . . . . . . . . . . . . Retrieved Matter . | . . . . . . . . . . . . Retrieved Components 2 | . . . 2 . . . . . . . . Parts Scanalyzed 3 | . . . . . . . 3 . . . . Part Schematics Acquired 3 | . . . . . . . 3 . . . . Parts Damaged . | . . . . . . . . . . . . Bothacking | -11 -10 -10 -8 -8 -7 -7 -7 -7 -7 -7 -6 ------------ Run | Yrd Mat Sub Mat Gar Fac Was Fac Low Low Dat Pro Used RIF Installer . | . . . . . . . . . . . . Robots Hacked 1 | . . 1 . . . . . . . . . Non-combat 1 | . . 1 . . . . . . . . . Combat . | . . . . . . . . . . . . Robot Hacks Applied 1 | . . 1 . . . . . . . . . parse_system 1 | . . 1 . . . . . . . . . Relay Couplers Released 14 | . . . . 12 . . 2 . . . . Machine Destruction 14 | . . . . 12 . . 2 . . . . Fabnet Peak Effective % . | . . . . . . . . . . . . Robots Rewired . | . . . . . . . . . . . . Allies Hacked . | . . . . . . . . . . . . Hacks Repelled . | . . . . . . . . . . . . Allies | -11 -10 -10 -8 -8 -7 -7 -7 -7 -7 -7 -6 -------- Run | Yrd Mat Sub Mat Gar Fac Was Fac Low Low Dat Pro Total Allies 8 | . 1 . 3 1 . . 2 . . . 1 Largest Group 2 | . 1 1 2 2 1 . 2 . . . 1 Highest-Rated Group 96 | . 10 10 26 57 23 . 64 . . . 96 Highest-Rated Ally 96 | . 10 10 26 31 23 . 32 . . . 96 Total Orders 24 | . 2 1 6 15 . . . . . . . STAY 13 | . 1 1 3 8 . . . . . . . FOLLOW 11 | . 1 . 3 7 . . . . . . . Ally Attacks 25 | . . . . 15 . . . . . . 10 Total Damage 426 | . . . . 232 . . . . . . 194 Kills 4 | . . . . 2 . . . . . . 2 Allies Corrupted . | . . . . . . . . . . . . Allies Melted . | . . . . . . . . . . . . Intel | -11 -10 -10 -8 -8 -7 -7 -7 -7 -7 -7 -6 ------- Run | Yrd Mat Sub Mat Gar Fac Was Fac Low Low Dat Pro Robot Analysis Total 1 | . . . 1 . . . . . . . . Derelict Logs Recovered 5 | . . 3 . . . . . 2 . . . Drone Launches . | . . . . . . . . . . . . Drone Recoveries . | . . . . . . . . . . . . Exploration | -11 -10 -10 -8 -8 -7 -7 -7 -7 -7 -7 -6 ------------- Run | Yrd Mat Sub Mat Gar Fac Was Fac Low Low Dat Pro Turns Passed 21700 | 47 1386 6072 2592 1750 1135 210 2498 3597 1810 221 382 Spaces Moved 10837 | 36 833 3643 1451 947 502 133 1252 1223 584 91 142 Core 1 | 1 . . . . . . . . . . . Treads 1367 | . 44 526 . . . . . 3 561 91 142 Legs 2774 | . . 1159 1097 . . . . 495 23 . . Wheels 6695 | 35 789 1958 354 947 502 133 1252 725 . . . Hover . | . . . . . . . . . . . . Flight . | . . . . . . . . . . . . Fastest Speed 50 | 50 95 95 125 150 150 155 145 150 240 240 240 Average Speed 175 | 91 133 155 143 150 171 155 158 271 293 240 240 Slowest Speed 480 | 95 160 260 265 150 260 155 240 480 400 240 240 Overloaded Moves . | . . . . . . . . . . . . Propulsion Burnouts . | . . . . . . . . . . . . Robots Hopped . | . . . . . . . . . . . . Cave-ins Triggered . | . . . . . . . . . . . . Exploration Rate (%) 62 | 4 99 97 79 86 14 86 38 98 65 68 18 Regions Visited 11 Branch Regions 5 Pre-discovered Areas 2 | . . . . . . . . 1 . 1 . Known Exits Taken 3 | . . . 1 . . . 1 1 . . . Unknown Exits Taken 5 | 1 1 1 . . . . . . 1 1 . Scrap Searched 14 | . . 8 . . . . . 2 4 . . Spaces Dug 81 | . 4 9 19 12 1 . 18 11 7 . . Terrain Destroyed 373 | . 4 12 60 26 17 . 57 118 62 . 17 Melee 16 | . . . . 7 1 . 2 . 6 . . Projectile 126 | . 4 12 18 9 16 . 22 43 1 . 1 AOE 231 | . . . 42 10 . . 33 75 55 . 16 Terrain Rammed . | . . . . . . . . . . . . Walls Destroyed . | . . . . . . . . . . . . Machines Disabled . | . . . . . . . . . . . . Actions | -11 -10 -10 -8 -8 -7 -7 -7 -7 -7 -7 -6 --------- Run | Yrd Mat Sub Mat Gar Fac Was Fac Low Low Dat Pro Total 12554 | 47 1010 3897 1805 1156 656 136 1580 1373 637 95 162 Wait 511 | . 67 56 133 77 47 . 97 28 . . 6 Move 10826 | 35 832 3642 1451 944 502 132 1251 1222 583 90 142 Hop . | . . . . . . . . . . . . Pick Up 168 | 6 20 27 50 9 12 1 30 10 2 1 . Fast Attach 61 | 6 4 14 9 1 4 1 11 2 6 1 2 Attach 58 | . 1 2 10 2 14 . 9 14 2 1 3 Detach 13 | . 2 1 1 . 4 . 1 . 4 . . Swap 185 | . 19 20 37 17 11 1 53 17 10 . . Drop 128 | . 13 35 31 9 3 1 29 2 3 2 . Fire 485 | . 52 81 48 55 55 . 93 75 17 . 9 Melee 67 | . . 1 33 10 4 . 6 3 10 . . Ram . | . . . . . . . . . . . . Kick 2 | . . . 2 . . . . . . . . Crush . | . . . . . . . . . . . . Escape Stasis 32 | . . . . 32 . . . . . . . Rewire . | . . . . . . . . . . . . Trap 1 | . . 1 . . . . . . . . . Miscellaneous 17 | . . 17 . . . . . . . . . Route ------- -11/Scrapyard -10/Materials (discovered 6 exits: *Mat x3 / *Min x2 / *Sub) -10/Subcaves (discovered 3 exits: *Mat x2 / Rec) -8/Materials (discovered 3 exits: *Fac x2 / Gar) -8/Garrison (discovered 3 exits: *Fac x3) -7/Factory -7/Waste -7/Factory (discovered 2 exits: *Low x2) -7/Lower Caves -7/Lower Caves (discovered 2 exits: [*Fac] / *Dat) -7/Data Miner -6/Proximity Caves History --------- Turn | Location | Event 22 | -11/Scrapyard | Discovered new exit (range 15) 48 | -11/Scrapyard | Entered Materials 243 | -10/Materials | Discovered new exit (range 8) 251 | -10/Materials | Identified exit to Mines 293 | -10/Materials | Discovered new exit (range 6) 296 | -10/Materials | Identified exit to Materials 309 | -10/Materials | Build established: Mutant 415 | -10/Materials | Discovered exit to Materials (range 4) 787 | -10/Materials | Discovered exit to Mines (range 16) 1140 | -10/Materials | Discovered exit to Materials (range 10) 1294 | -10/Materials | Discovered new exit (range 9) 1434 | -10/Materials | Entered Subcaves 1434 | -10/Subcaves | Accompanied by 1 ally 1496 | -10/Subcaves | Shifting Twisted Machinery released Mak. Light Armor Plating 1505 | -10/Subcaves | Shifting Twisted Machinery released Sub. Optics 1602 | -10/Subcaves | Ambushed by swarm of Subdwellers 1971 | -10/Subcaves | Build established: Subdweller-Mutant 2216 | -10/Subcaves | A swath of the cavern ceiling suddenly collapsed 2228 | -10/Subcaves | Identified exit to Recycling 2337 | -10/Subcaves | Shifting Twisted Machinery released Sub. Beam Cannon 2346 | -10/Subcaves | Shifting Twisted Machinery released Battle Rifle 2630 | -10/Subcaves | Build established: Mutant 3089 | -10/Subcaves | Discovered new exit (range 6) 3131 | -10/Subcaves | Build established: Subdweller-Mutant 3657 | -10/Subcaves | Disturbed a concealed Subdweller 3696 | -10/Subcaves | Core integrity fell below 50% 4530 | -10/Subcaves | A swath of the cavern ceiling suddenly collapsed 4837 | -10/Subcaves | Discovered new exit (range 16) 4852 | -10/Subcaves | Learned Materials emergency access door positions 5368 | -10/Subcaves | Visited 4L-MR0's lab 5383 | -10/Subcaves | Found Cargo Legs 5385 | -10/Subcaves | Attached Cargo Legs, gained temporary slots: Utility x2 5604 | -10/Subcaves | Visited Clippyterm 5641 | -10/Subcaves | Shifting Twisted Machinery released Sub. Monowheel 5643 | -10/Subcaves | Shifting Twisted Machinery released Sub. Monowheel 6020 | -10/Subcaves | Found Flightbrick 7506 | -10/Subcaves | Entered Materials 7506 | -8/Materials | Evolved 4 slots: Propulsion x2, Utility x2 7941 | -8/Materials | Build established: Scavenger-Mutant 8092 | -8/Materials | Repaired Myomer Leg? 8181 | -8/Materials | Repaired Bore Cannon 8250 | -8/Materials | Discovered new exit (range 3) 8647 | -8/Materials | Build established: Mutant 8755 | -8/Materials | Central database locked down 8831 | -8/Materials | Garrison activated, responded to threat 9792 | -8/Materials | Discovered new exit (range 3) 10096 | -8/Materials | Identified exit to Garrison 10098 | -8/Materials | Entered Garrison 10098 | -8/Garrison | Accompanied by 1 ally 10221 | -8/Garrison | Spotted B-75 Beast 10292 | -8/Garrison | Triggered checkpoint 10556 | -8/Garrison | Door terminal overloaded 10557 | -8/Garrison | Rescued a captive Derelict 10585 | -8/Garrison | Triggered checkpoint 10606 | -8/Garrison | Triggered checkpoint 10710 | -8/Garrison | Destroyed 7 combat bots 10792 | -8/Garrison | Garrison Relay disabled 10890 | -8/Garrison | Discovered new exit (range 15) 10974 | -8/Garrison | Triggered checkpoint 11037 | -8/Garrison | Garrison Relay disabled 11128 | -8/Garrison | Triggered checkpoint 11139 | -8/Garrison | Discovered new exit (range 13) 11400 | -8/Garrison | Triggered checkpoint 11468 | -8/Garrison | Garrison Relay disabled 11529 | -8/Garrison | Discovered new exit (range 20) 11529 | -8/Garrison | Discovered new exit (range 62) 11529 | -8/Garrison | Discovered new exit (range 84) 11565 | -8/Garrison | Attempted to access garrison exit controls, blocked by remote lockdown 11716 | -8/Garrison | Attempted to access garrison exit controls, blocked by remote lockdown 11848 | -8/Garrison | Entered Factory 11848 | -7/Factory | Accompanied by 1 ally 11848 | -7/Factory | Evolved 2 slots: Power x1, Utility x1 11987 | -7/Factory | Identified exit to Garrison 12008 | -7/Factory | Garrison activated, responded to threat 12248 | -7/Factory | First assault squad dispatched 12460 | -7/Factory | Garrison activated, responded to threat 12627 | -7/Factory | Cargo convoy interrupted 12637 | -7/Factory | Lost 5 parts (1p2n1u1w) 12720 | -7/Factory | Build established: Scavenger-Mutant 12983 | -7/Factory | Sucked down chute 12983 | -7/Factory | Entered Waste 12990 | -7/Waste | Found Prototype Launcher 12991 | -7/Waste | Identified Mni. Smartbomb Launcher 13064 | -7/Waste | Spotted C-40 Crusher 13076 | -7/Waste | Spotted C-40 Crusher 13089 | -7/Waste | Spotted C-40 Crusher 13108 | -7/Waste | Spotted C-40 Crusher 13123 | -7/Waste | Spotted C-40 Crusher 13177 | -7/Waste | Discovered new exit (range 10) 13193 | -7/Waste | Entered Factory 13669 | -7/Factory | Garrison activated, responded to threat 14045 | -7/Factory | Lost 3 parts (1p2u) 14324 | -7/Factory | Found Prototype Launcher 14325 | -7/Factory | Identified Rocket Array 14328 | -7/Factory | Found Rocket Array 14350 | -7/Factory | Build established: Mutant 15190 | -7/Factory | Identified exit to Lower Caves 15280 | -7/Factory | Lost 3 parts (2n1w) 15288 | -7/Factory | Destroyed 7 combat bots 15593 | -7/Factory | First assault squad dispatched 15660 | -7/Factory | Build established: Scavenger-Mutant 15691 | -7/Factory | Entered Lower Caves 15697 | -7/Lower Caves | Met a Warlord Commander 15698 | -7/Lower Caves | Learned location of Warlord (-4) 15699 | -7/Lower Caves | Warlord Commander delivered Encrypted Comm Array 15699 | -7/Lower Caves | Found Encrypted Comm Array 15982 | -7/Lower Caves | Build established: Mutant 16734 | -7/Lower Caves | System corruption reached 10% 16764 | -7/Lower Caves | Lost 4 parts (2p2u) 17016 | -7/Lower Caves | Build established: Scavenger-Mutant 17104 | -7/Lower Caves | Spotted B-75 Beast 17213 | -7/Lower Caves | Lost 4 parts (1p3n) 17968 | -7/Lower Caves | Core integrity fell below 50% 18001 | -7/Lower Caves | Destroyed 7 combat bots 18221 | -7/Lower Caves | Encountered a Warlord checkpoint 18270 | -7/Lower Caves | Build established: Mutant 18322 | -7/Lower Caves | Identified exit to Lower Caves 18413 | -7/Lower Caves | Destroyed B-75 Beast 18441 | -7/Lower Caves | Lost 4 parts (1n2u1w) 18792 | -7/Lower Caves | Learned Factory emergency access door positions 19288 | -7/Lower Caves | Entered another Lower Caves area 19325 | -7/Lower Caves | Discovered new exit (range 5) 20582 | -7/Lower Caves | Spotted B-75 Beast 20916 | -7/Lower Caves | Discovered new exit (range 9) 21008 | -7/Lower Caves | Build established: Derelict-Mutant 21098 | -7/Lower Caves | Entered Data Miner 21099 | -7/Data Miner | Discovered new exit (range 7) 21145 | -7/Data Miner | Met Data Miner 21186 | -7/Data Miner | Learned location of Section 7 (-3) 21186 | -7/Data Miner | Acquired the access code to Warlord's prototype stash 21222 | -7/Data Miner | Received God Mode back door access code from Data Miner 21319 | -7/Data Miner | Entered Proximity Caves 21319 | -6/Proximity Caves | Spotted B-75 Beast 21336 | -6/Proximity Caves | Attracted the attention of an 0b10 checkpoint 21351 | -6/Proximity Caves | Escorted by Enhanced Grunt 21491 | -6/Proximity Caves | Received a Behemoth hack from an annoying Tinkerer 21684 | -6/Proximity Caves | Core integrity fell below 20% 21701 | -6/Proximity Caves | Destroyed by G-50 Soldier with Heavy Laser Last Messages --------------- 21685_ Critical hit (Burn: +37). 21687_ Carbon-fiber Leg fries itself beyond repair. 21690_ G-50 Soldier heat damages Carbon-fiber Leg. 21690_ Axe fries itself beyond repair. 21690_ Carbon-fiber Leg fries itself beyond repair. 21690_ Imp. Heat Sink destroyed. 21691_ Imp. Medium Treads severed. 21696_ Overheating: Imp. Deuterium Engine damaged (-24). 21696_ Hvy. Phase Cannon destroyed. 21697_ Overheating: Matter decay (-47). 21698_ Imp. Spread Laser broken. 21698_ Overheating: Short circuit. 21698_ Broken Imp. Spread Laser destroyed. 21699_ Imp. Sensor Array destroyed. 21699_ Destroyed Carbon-fiber Leg. 21700_ Imp. Deuterium Engine destroyed. Map ----- +----------------------------------------------------+ | | | | | | | | | | | ?????????????????????????????????????????????????? | | ?????????????????????????????????????????????????? | | ?????????????????????????????????????????????????? | | ?????????????????????????????????????????????????? | | ?????????????????????????????????????????????????? | | ?????????????????????????????????????????????????? | | ?????????????????????????????????????????????????? | | ?????????????????????????????????????????????????? | | ?????????????????????????????????????????????????? | | ?????????????????????????????????????????????????? | | ?????????????????????????????????????????????????? | | ?????????????????????????????????????????????????? | | ?????????????????????????????????????????????????? | | ?????????????????????????????????????????????????? | | ######???????????????????????????????????????????? | | ##?######?????########??????????????????????? | | ### ####### #??????????????????????? | | #??????????????????????? | | ### == #????? #?????????????? | | ?## ####### !]%!## #??????????????? | | ?# #?????##### g @* #???????????????? | | ## #?????????# #### l ! ######???????????????? | | # ##?????????# #""";%% ;#????????????????????? | | # #?????????? # # g ; #???????????????????? | | # ##????????? # ?#+;; ; #???????????????????? | | ##????????? # ?? ;g #???????????????????? | | ##????????? #?? ; ; ???????????????????? | | ##????????? ### ???""""; ;###??????????????????? | | ##?????????###??? ??###### # ????????????????????? | | #???????????????? ???????? ????????????????????? | | #????????????????#???????? ????????????????????? | | #????????????????????????? ???????????????????? | | #######??????????????????? ? ???????????????????? | | #??????????????????? ? ???????????????????? | | #??????????????????? ?#???????????????????? | | #### ????????????????? ?????????????????????? | | ?????? ???????????????????????????????????????? | | ????????# ???????????????????????????????????????? | | ?????????????????????????????????????????????????? | | ?????????????????????????????????????????????????? | | ?????????????????????????????????????????????????? | | ?????????????????????????????????????????????????? | | ?????????????????????????????????????????????????? | | ????????????????????????????????????????????????? | | ????????????????????????????????????????????? | +----------------------------------------------------+ Best States ------------- Heat Dissipation 62 Coolant Potential 65 Energy Generation 29 Energy Capacity 480 Matter Stores 300 Matter Capacity 300 Sight Range 21 Robot Scan Range 15 Terrain Scan Range 16 Terrain Scan Density 10 Jamming Range 12 Armor Coverage 950 Resistance: TH 10 Evasion (%) 55 Targeting Accuracy 6 Armor Integrity Analysis 30 Recoil Reduction 3 Offensive Hacking 11 Defensive Hacking 10 Item Schematics ----------------- Huge Storage Unit | -8/Materials | Hacked Hrd. Heavy Armor Plating | -7/Factory | Scanalyzed Mak. Sword | -7/Factory | Scanalyzed Sub. Shrapnel Launcher | -7/Factory | Scanalyzed Combat Drone Bay | -7/Data Miner | Free Lgt. Regenerative Plating | -7/Data Miner | Free Cld. Cesium-ion Thruster | -7/Data Miner | Free Gravity Neutralizer | -7/Data Miner | Free Imp. Lightning Gun | -7/Data Miner | Free Arm. Medium Treads | -7/Data Miner | Free Adv. Salvage Targeting Computer | -7/Data Miner | Free Enh. Gauss Cannon | -7/Data Miner | Free Adv. Hacking Suite | -7/Data Miner | Free Robot Schematics ------------------ O-24 Administrator | -7/Data Miner | Free S-27 Virus | -7/Data Miner | Free W-25 Informer | -7/Data Miner | Free H-55 Commando | -7/Data Miner | Free B-48 Gladiator | -7/Data Miner | Free Fabricated ------------ Nothing Alien Tech Used ----------------- None Achievements -------------- None Challenges ------------ None Game ------ Seed TargetMetafiberDiverter Manual? 0 Play Time 02:58:34 Cumulative 691.0 hours Start 2024.02.27 @ 01:56:07 End 2024.02.27 @ 04:53:21 Sessions 1 Manual Loads 0 Difficulty Rogue Special Mode None Game No. 141 Rogue 141 Adventurer 0 Explorer 0 Win Type - Total 40 Types 22/4/6/1/2/1/2/2/0 Lore% 89 Gallery% 93 Achievement% 89 Wizard Run 0 Options --------- Layout 1 ASCII 0 Keyboard 0 Movement Numpad Keybinds 0 Fullscreen 1 Font 20/Smallcaps Map View 50x35 Zoom Use 0% Tactical HUD 1 Map Filters NONE Filters NONE Steam 1 RUN: 4434bd45-d0cd-42ec-bb13-23c22cec7b9d